[Event "*** SCC Grand Prix: Titled Tuesday Blitz"]
[Site "Chess.com"]
[Date "2020.09.29"]
[Round "4"]
[White "SergeyShtyka"]
[Black "kidagent"]
[Result "1-0"]
[WhiteElo "2443"]
[BlackElo "2279"]
[TimeControl "180+1"]
[EndTime "10:40:34 PDT"]
[Termination "SergeyShtyka won on time"]

1. e4 {[%clk 0:03:00.9]} 1... c5 {[%clk 0:02:59.6]} 2. Nf3 {[%clk 0:02:59.4]}
2... d6 {[%clk 0:02:59.9]} 3. d4 {[%clk 0:02:58.7]} 3... cxd4 {[%clk 0:03:00.5]}
4. Nxd4 {[%clk 0:02:58.5]} 4... Nf6 {[%clk 0:03:00.5]} 5. Nc3 {[%clk 0:02:58.4]}
5... a6 {[%clk 0:03:00.4]} 6. Bd3 {[%clk 0:02:58]} 6... e5 {[%clk 0:02:59.9]} 7.
Nde2 {[%clk 0:02:57.7]} 7... Be7 {[%clk 0:02:58.7]} 8. O-O {[%clk 0:02:57.7]}
8... O-O {[%clk 0:02:57.4]} 9. Ng3 {[%clk 0:02:57.4]} 9... Be6 {[%clk
0:02:53.1]} 10. Bg5 {[%clk 0:02:56.4]} 10... Nbd7 {[%clk 0:02:52]} 11. Qe2
{[%clk 0:02:51.6]} 11... Rc8 {[%clk 0:02:45.7]} 12. Nd1 {[%clk 0:02:48.6]} 12...
h6 {[%clk 0:02:28.7]} 13. Bd2 {[%clk 0:02:44.6]} 13... d5 {[%clk 0:02:24.3]} 14.
exd5 {[%clk 0:02:25.2]} 14... Nxd5 {[%clk 0:02:22.6]} 15. Nf5 {[%clk 0:02:20.4]}
15... Nf4 {[%clk 0:01:53.4]} 16. Nxe7+ {[%clk 0:02:02]} 16... Qxe7 {[%clk
0:01:51.6]} 17. Bxf4 {[%clk 0:02:02.2]} 17... exf4 {[%clk 0:01:51.4]} 18. Qe4
{[%clk 0:01:57.1]} 18... f5 {[%clk 0:01:44.7]} 19. Qxf4 {[%clk 0:01:46.1]} 19...
g5 {[%clk 0:01:42.8]} 20. Qd4 {[%clk 0:01:39.2]} 20... Qf6 {[%clk 0:01:34.8]}
21. Qxf6 {[%clk 0:01:36.3]} 21... Nxf6 {[%clk 0:01:35.7]} 22. Re1 {[%clk
0:01:35.5]} 22... Rfe8 {[%clk 0:01:32.9]} 23. Ne3 {[%clk 0:01:28.7]} 23... f4
{[%clk 0:01:31.9]} 24. Nf5 {[%clk 0:01:21.5]} 24... Bxf5 {[%clk 0:01:28.2]} 25.
Bxf5 {[%clk 0:01:20]} 25... Rc5 {[%clk 0:01:23.9]} 26. Rxe8+ {[%clk 0:01:18.3]}
26... Nxe8 {[%clk 0:01:23.7]} 27. Bd3 {[%clk 0:01:18.4]} 27... Kf7 {[%clk
0:01:21.7]} 28. Re1 {[%clk 0:01:17.7]} 28... Nd6 {[%clk 0:01:19.6]} 29. Kf1
{[%clk 0:01:15.4]} 29... Kf6 {[%clk 0:01:16.3]} 30. g3 {[%clk 0:01:13.4]} 30...
fxg3 {[%clk 0:01:09.4]} 31. fxg3 {[%clk 0:01:10.8]} 31... Nc4 {[%clk 0:00:58.3]}
32. Bxc4 {[%clk 0:01:08.3]} 32... Rxc4 {[%clk 0:00:59.2]} 33. c3 {[%clk
0:01:07.3]} 33... Rc5 {[%clk 0:00:56]} 34. Kg2 {[%clk 0:01:05.8]} 34... Rd5
{[%clk 0:00:53.6]} 35. Re2 {[%clk 0:01:05.3]} 35... Rd1 {[%clk 0:00:53.5]} 36.
Kf3 {[%clk 0:01:03.9]} 36... h5 {[%clk 0:00:51.3]} 37. Ke4 {[%clk 0:01:02.6]}
37... Ke6 {[%clk 0:00:50.2]} 38. b3 {[%clk 0:01:00.6]} 38... Rc1 {[%clk
0:00:44.4]} 39. c4 {[%clk 0:01:00.3]} 39... b6 {[%clk 0:00:40.3]} 40. Kd4+
{[%clk 0:01:00.2]} 40... Kd6 {[%clk 0:00:40.3]} 41. Rf2 {[%clk 0:01:00.6]} 41...
Rd1+ {[%clk 0:00:38.5]} 42. Ke4 {[%clk 0:00:59.6]} 42... Ke6 {[%clk 0:00:38.7]}
43. Re2 {[%clk 0:00:58.1]} 43... Rd8 {[%clk 0:00:33.8]} 44. Rc2 {[%clk
0:00:56.6]} 44... Rd1 {[%clk 0:00:33.1]} 45. b4 {[%clk 0:00:55.2]} 45... Re1+
{[%clk 0:00:30.1]} 46. Kd4 {[%clk 0:00:55.3]} 46... Rd1+ {[%clk 0:00:29.8]} 47.
Ke4 {[%clk 0:00:50.4]} 47... Re1+ {[%clk 0:00:29.7]} 48. Kf3 {[%clk 0:00:50.7]}
48... Rf1+ {[%clk 0:00:28.3]} 49. Kg2 {[%clk 0:00:49.3]} 49... Rd1 {[%clk
0:00:26.4]} 50. c5 {[%clk 0:00:46.2]} 50... bxc5 {[%clk 0:00:25.8]} 51. bxc5
{[%clk 0:00:43.6]} 51... Kd7 {[%clk 0:00:25.4]} 52. c6+ {[%clk 0:00:38.4]} 52...
Kc7 {[%clk 0:00:25.6]} 53. Kf3 {[%clk 0:00:39]} 53... Rd6 {[%clk 0:00:20.5]} 54.
Ke4 {[%clk 0:00:39.2]} 54... Rf6 {[%clk 0:00:15.6]} 55. Ke5 {[%clk 0:00:38.7]}
55... Rf1 {[%clk 0:00:15.1]} 56. Kd5 {[%clk 0:00:38.4]} 56... Rd1+ {[%clk
0:00:15.1]} 57. Ke6 {[%clk 0:00:36.7]} 57... Rf1 {[%clk 0:00:15.6]} 58. Ke5
{[%clk 0:00:36.4]} 58... g4 {[%clk 0:00:10.7]} 59. Ke4 {[%clk 0:00:35.5]} 59...
Rd1 {[%clk 0:00:09.5]} 60. Kf4 {[%clk 0:00:34.1]} 60... Rd5 {[%clk 0:00:08.6]}
61. Ke4 {[%clk 0:00:30.6]} 61... Rb5 {[%clk 0:00:08.6]} 62. Kd4 {[%clk
0:00:26.6]} 62... Ra5 {[%clk 0:00:08.1]} 63. Ke3 {[%clk 0:00:24.5]} 63... Rb5
{[%clk 0:00:08.1]} 64. Kf2 {[%clk 0:00:23.9]} 64... Ra5 {[%clk 0:00:07.8]} 65.
Kg2 {[%clk 0:00:24.1]} 65... Rb5 {[%clk 0:00:08]} 66. h3 {[%clk 0:00:24.5]}
66... Ra5 {[%clk 0:00:07.1]} 67. hxg4 {[%clk 0:00:24.6]} 67... hxg4 {[%clk
0:00:07.3]} 68. Kf2 {[%clk 0:00:25.2]} 68... Rf5+ {[%clk 0:00:07]} 69. Ke2
{[%clk 0:00:24.4]} 69... Rf6 {[%clk 0:00:06.8]} 70. Rc3 {[%clk 0:00:21.9]} 70...
Re6+ {[%clk 0:00:05.1]} 71. Kd3 {[%clk 0:00:22.2]} 71... Rf6 {[%clk 0:00:05.3]}
72. Ke4 {[%clk 0:00:22]} 72... Rf2 {[%clk 0:00:05.4]} 73. a3 {[%clk 0:00:21.7]}
73... a5 {[%clk 0:00:05.5]} 74. Ke5 {[%clk 0:00:19.4]} 74... Rf3 {[%clk
0:00:04.9]} 75. Kd4 {[%clk 0:00:15.2]} 75... Rxc3 {[%clk 0:00:01.5]} 76. Kxc3
{[%clk 0:00:14.8]} 76... Kxc6 {[%clk 0:00:02.4]} 77. Kc4 {[%clk 0:00:13.8]} 1-0

[Event "*** SCC Grand Prix: Titled Tuesday Blitz"]
[Site "Chess.com"]
[Date "2020.09.29"]
[Round "4"]
[White "IsaacWiebe"]
[Black "CM_rui"]
[Result "1/2-1/2"]
[WhiteElo "2247"]
[BlackElo "2388"]
[TimeControl "180+1"]
[EndTime "10:40:37 PDT"]
[Termination "Game drawn - insufficient material"]

1. d4 {[%clk 0:03:00.9]} 1... Nf6 {[%clk 0:02:59.8]} 2. Nf3 {[%clk 0:03:00.4]}
2... e6 {[%clk 0:03:00.4]} 3. c4 {[%clk 0:03:00]} 3... Bb4+ {[%clk 0:02:59.7]}
4. Bd2 {[%clk 0:02:57.2]} 4... Qe7 {[%clk 0:02:59.9]} 5. e3 {[%clk 0:02:53.5]}
5... O-O {[%clk 0:02:59.2]} 6. Bd3 {[%clk 0:02:53.4]} 6... Bxd2+ {[%clk
0:02:59.3]} 7. Nbxd2 {[%clk 0:02:53.1]} 7... d6 {[%clk 0:03:00.2]} 8. O-O {[%clk
0:02:52.7]} 8... e5 {[%clk 0:03:00.8]} 9. Qc2 {[%clk 0:02:50.2]} 9... a5 {[%clk
0:02:55.1]} 10. Rfc1 {[%clk 0:02:17.9]} 10... Na6 {[%clk 0:02:46.8]} 11. a3
{[%clk 0:02:15]} 11... b6 {[%clk 0:02:39.7]} 12. Ne4 {[%clk 0:02:01.9]} 12... h6
{[%clk 0:02:26.1]} 13. Nxf6+ {[%clk 0:02:00.6]} 13... Qxf6 {[%clk 0:02:26.4]}
14. Bh7+ {[%clk 0:01:59.2]} 14... Kh8 {[%clk 0:02:24.6]} 15. Be4 {[%clk
0:02:00.1]} 15... Rb8 {[%clk 0:02:22.2]} 16. Rab1 {[%clk 0:00:49.9]} 16... exd4
{[%clk 0:01:56.2]} 17. Nxd4 {[%clk 0:00:46.6]} 17... Nc5 {[%clk 0:01:53.3]} 18.
Bf3 {[%clk 0:00:45.3]} 18... Bd7 {[%clk 0:01:48.9]} 19. b4 {[%clk 0:00:43.4]}
19... axb4 {[%clk 0:01:30.7]} 20. axb4 {[%clk 0:00:44.3]} 20... Nb7 {[%clk
0:01:25.5]} 21. Bxb7 {[%clk 0:00:42.1]} 21... Rxb7 {[%clk 0:01:26.4]} 22. Ra1
{[%clk 0:00:41.7]} 22... c5 {[%clk 0:01:22.2]} 23. bxc5 {[%clk 0:00:38.5]} 23...
bxc5 {[%clk 0:01:20.2]} 24. Nf3 {[%clk 0:00:37.6]} 24... Rfb8 {[%clk 0:01:17]}
25. Qc3 {[%clk 0:00:32.4]} 25... Qxc3 {[%clk 0:00:49.8]} 26. Rxc3 {[%clk
0:00:33.3]} 26... Rb1+ {[%clk 0:00:49.9]} 27. Rc1 {[%clk 0:00:33.9]} 27... Rxa1
{[%clk 0:00:49.8]} 28. Rxa1 {[%clk 0:00:34]} 28... Be6 {[%clk 0:00:49.5]} 29.
Nd2 {[%clk 0:00:31.6]} 29... Rb2 {[%clk 0:00:49.6]} 30. Ne4 {[%clk 0:00:31.5]}
30... Rb6 {[%clk 0:00:42.8]} 31. Rd1 {[%clk 0:00:24.6]} 31... Bxc4 {[%clk
0:00:37.8]} 32. Nxd6 {[%clk 0:00:23.8]} 32... Bb3 {[%clk 0:00:36.5]} 33. Nc8
{[%clk 0:00:13.3]} 33... Rc6 {[%clk 0:00:31.2]} 34. Rd8+ {[%clk 0:00:12.3]}
34... Kh7 {[%clk 0:00:31.8]} 35. Ne7 {[%clk 0:00:12.2]} 35... Rc7 {[%clk
0:00:31.6]} 36. Nd5 {[%clk 0:00:11.5]} 36... Bxd5 {[%clk 0:00:30.6]} 37. Rxd5
{[%clk 0:00:12.4]} 37... Kg6 {[%clk 0:00:30.3]} 38. Kf1 {[%clk 0:00:11.1]} 38...
c4 {[%clk 0:00:29.9]} 39. Ke1 {[%clk 0:00:10.5]} 39... Kf6 {[%clk 0:00:28.7]}
40. Kd2 {[%clk 0:00:09.9]} 40... Ke6 {[%clk 0:00:29]} 41. Rd4 {[%clk 0:00:09.2]}
41... Ke5 {[%clk 0:00:27.6]} 42. Kc3 {[%clk 0:00:09.3]} 42... Ra7 {[%clk
0:00:24.1]} 43. Rxc4 {[%clk 0:00:09.1]} 43... Ra2 {[%clk 0:00:24.2]} 44. f4+
{[%clk 0:00:07.4]} 44... Kf5 {[%clk 0:00:23.6]} 45. Rc7 {[%clk 0:00:06.7]} 45...
Kg6 {[%clk 0:00:22.8]} 46. g4 {[%clk 0:00:06.3]} 46... Rxh2 {[%clk 0:00:22.7]}
47. Kd3 {[%clk 0:00:06.5]} 47... Rg2 {[%clk 0:00:21.7]} 48. Rc6+ {[%clk
0:00:06.6]} 48... Kh7 {[%clk 0:00:20]} 49. g5 {[%clk 0:00:06.4]} 49... hxg5
{[%clk 0:00:19.7]} 50. fxg5 {[%clk 0:00:07.3]} 50... Rxg5 {[%clk 0:00:20.1]} 51.
Ke4 {[%clk 0:00:08]} 51... Rg6 {[%clk 0:00:19.5]} 52. Rc7 {[%clk 0:00:07.5]}
52... Rf6 {[%clk 0:00:19.9]} 53. Rc5 {[%clk 0:00:06.3]} 53... Kg6 {[%clk
0:00:19.2]} 54. Rc1 {[%clk 0:00:06.6]} 54... Re6+ {[%clk 0:00:19]} 55. Kf4
{[%clk 0:00:06.5]} 55... Kf6 {[%clk 0:00:19.4]} 56. Rg1 {[%clk 0:00:05.4]} 56...
g6 {[%clk 0:00:15.9]} 57. e4 {[%clk 0:00:05.7]} 57... Re5 {[%clk 0:00:15.2]} 58.
Ra1 {[%clk 0:00:05.2]} 58... g5+ {[%clk 0:00:13.2]} 59. Kf3 {[%clk 0:00:05.3]}
59... Re6 {[%clk 0:00:12.7]} 60. Ra5 {[%clk 0:00:05.1]} 60... Kg6 {[%clk
0:00:12.2]} 61. Rb5 {[%clk 0:00:04.3]} 61... Kh5 {[%clk 0:00:11.8]} 62. Rb1
{[%clk 0:00:02.9]} 62... g4+ {[%clk 0:00:11.3]} 63. Kf4 {[%clk 0:00:03.2]} 63...
Rf6+ {[%clk 0:00:11.1]} 64. Ke5 {[%clk 0:00:03.7]} 64... Kg5 {[%clk 0:00:11.5]}
65. Rh1 {[%clk 0:00:03.3]} 65... Re6+ {[%clk 0:00:11.5]} 66. Kd4 {[%clk
0:00:03.1]} 66... Kf4 {[%clk 0:00:11.6]} 67. Rf1+ {[%clk 0:00:03.3]} 67... Kg3
{[%clk 0:00:11.7]} 68. Rxf7 {[%clk 0:00:03.2]} 68... Kh2 {[%clk 0:00:11.6]} 69.
Rg7 {[%clk 0:00:03.2]} 69... g3 {[%clk 0:00:11]} 70. e5 {[%clk 0:00:03.5]} 70...
g2 {[%clk 0:00:10.9]} 71. Kd5 {[%clk 0:00:03.2]} 71... Ra6 {[%clk 0:00:08.1]}
72. e6 {[%clk 0:00:02.5]} 72... Ra3 {[%clk 0:00:07]} 73. Rxg2+ {[%clk
0:00:01.6]} 73... Kxg2 {[%clk 0:00:06.7]} 74. e7 {[%clk 0:00:02.5]} 74... Re3
{[%clk 0:00:06.5]} 75. Kd6 {[%clk 0:00:02.7]} 75... Kf3 {[%clk 0:00:06.7]} 76.
Kd7 {[%clk 0:00:03.1]} 76... Rd3+ {[%clk 0:00:07.2]} 77. Ke6 {[%clk 0:00:03.6]}
77... Re3+ {[%clk 0:00:06.1]} 78. Kd7 {[%clk 0:00:04.1]} 78... Rd3+ {[%clk
0:00:06.2]} 79. Ke6 {[%clk 0:00:04.4]} 79... Re3+ {[%clk 0:00:06.5]} 80. Kf7
{[%clk 0:00:04.7]} 80... Rxe7+ {[%clk 0:00:06.8]} 81. Kxe7 {[%clk 0:00:04.8]}
1/2-1/2

[Event "*** SCC Grand Prix: Titled Tuesday Blitz"]
[Site "Chess.com"]
[Date "2020.09.29"]
[Round "4"]
[White "TrimitziosP7"]
[Black "Paladin61"]
[Result "1-0"]
[WhiteElo "2835"]
[BlackElo "2629"]
[TimeControl "180+1"]
[EndTime "10:40:38 PDT"]
[Termination "TrimitziosP7 won on time"]

1. e4 {[%clk 0:03:00.9]} 1... c5 {[%clk 0:02:59.3]} 2. b4 {[%clk 0:02:59.9]}
2... cxb4 {[%clk 0:02:57.3]} 3. a3 {[%clk 0:02:59.7]} 3... bxa3 {[%clk
0:02:53.2]} 4. c3 {[%clk 0:02:57.3]} 4... d6 {[%clk 0:02:52.4]} 5. Nxa3 {[%clk
0:02:54.8]} 5... Nf6 {[%clk 0:02:45.4]} 6. Nf3 {[%clk 0:02:54.4]} 6... g6 {[%clk
0:02:44.2]} 7. Bd3 {[%clk 0:02:51.8]} 7... Bg7 {[%clk 0:02:43.6]} 8. O-O {[%clk
0:02:49.9]} 8... O-O {[%clk 0:02:43.3]} 9. Bc2 {[%clk 0:02:49]} 9... b6 {[%clk
0:02:26.9]} 10. d4 {[%clk 0:02:36.9]} 10... Bb7 {[%clk 0:02:24.8]} 11. Re1
{[%clk 0:02:34.1]} 11... Nc6 {[%clk 0:02:19.9]} 12. Bb2 {[%clk 0:02:25.4]} 12...
Rc8 {[%clk 0:02:17.4]} 13. Rc1 {[%clk 0:02:13.9]} 13... a6 {[%clk 0:02:09.2]}
14. c4 {[%clk 0:02:10.2]} 14... Nd7 {[%clk 0:01:58]} 15. Qd2 {[%clk 0:02:06.3]}
15... e5 {[%clk 0:01:46.1]} 16. d5 {[%clk 0:02:03.4]} 16... Na5 {[%clk
0:01:39.2]} 17. Qe2 {[%clk 0:01:57.3]} 17... Bh6 {[%clk 0:01:31]} 18. Rb1 {[%clk
0:01:54.8]} 18... Qc7 {[%clk 0:01:25.5]} 19. Bd3 {[%clk 0:01:49.6]} 19... Nc5
{[%clk 0:01:11.4]} 20. Bc3 {[%clk 0:01:39.5]} 20... Ba8 {[%clk 0:00:48.5]} 21.
Bd2 {[%clk 0:01:22.3]} 21... Bxd2 {[%clk 0:00:42.8]} 22. Nxd2 {[%clk 0:01:23.2]}
22... Rb8 {[%clk 0:00:39.2]} 23. Bc2 {[%clk 0:01:17.8]} 23... Bb7 {[%clk
0:00:34.9]} 24. Qe3 {[%clk 0:01:13.8]} 24... Kg7 {[%clk 0:00:34.1]} 25. f4
{[%clk 0:01:10.3]} 25... f6 {[%clk 0:00:33.9]} 26. Nf3 {[%clk 0:01:06.2]} 26...
Bc8 {[%clk 0:00:32]} 27. h3 {[%clk 0:01:05.7]} 27... Qe7 {[%clk 0:00:30]} 28. f5
{[%clk 0:01:02.5]} 28... Bd7 {[%clk 0:00:24.1]} 29. g4 {[%clk 0:00:58]} 29... g5
{[%clk 0:00:20.5]} 30. Kg2 {[%clk 0:00:55]} 30... h6 {[%clk 0:00:20.9]} 31. h4
{[%clk 0:00:52.2]} 31... Rh8 {[%clk 0:00:20.5]} 32. Rb4 {[%clk 0:00:44.4]} 32...
Rb7 {[%clk 0:00:10.7]} 33. Rh1 {[%clk 0:00:38]} 33... Be8 {[%clk 0:00:08]} 34.
Nb1 {[%clk 0:00:34.7]} 34... Bf7 {[%clk 0:00:07.4]} 35. Nbd2 {[%clk 0:00:30.5]}
35... Rbb8 {[%clk 0:00:06.1]} 36. Rhb1 {[%clk 0:00:26]} 36... Nd7 {[%clk
0:00:06.2]} 37. Ba4 {[%clk 0:00:21.4]} 37... Nc5 {[%clk 0:00:06]} 38. Bd1 {[%clk
0:00:15.7]} 38... Qd8 {[%clk 0:00:06]} 39. h5 {[%clk 0:00:13.9]} 39... Kf8
{[%clk 0:00:05.8]} 40. Ne1 {[%clk 0:00:10.2]} 40... Kg7 {[%clk 0:00:05.9]} 41.
Nd3 {[%clk 0:00:09.7]} 41... Qc7 {[%clk 0:00:05.8]} 42. Ne1 {[%clk 0:00:09.6]}
42... Nd7 {[%clk 0:00:04.9]} 43. Be2 {[%clk 0:00:09.5]} 43... Rhc8 {[%clk
0:00:04.7]} 44. Nd3 {[%clk 0:00:08.8]} 44... Nc5 {[%clk 0:00:05.3]} 45. Nf2
{[%clk 0:00:08.7]} 45... Nd7 {[%clk 0:00:04.9]} 46. Nf3 {[%clk 0:00:08.6]} 46...
Nc5 {[%clk 0:00:05.4]} 47. Nh3 {[%clk 0:00:08.7]} 47... Kf8 {[%clk 0:00:05.4]}
48. Nhxg5 {[%clk 0:00:07.7]} 48... hxg5 {[%clk 0:00:06.3]} 49. Nxg5 {[%clk
0:00:08.6]} 49... fxg5 {[%clk 0:00:06.8]} 50. Qxg5 {[%clk 0:00:09.5]} 50... Qd7
{[%clk 0:00:05.9]} 51. Qh6+ {[%clk 0:00:09.3]} 51... Ke8 {[%clk 0:00:05.9]} 52.
Bf3 {[%clk 0:00:06.1]} 52... Kd8 {[%clk 0:00:05.2]} 53. Rxb6 {[%clk 0:00:04.6]}
53... Kc7 {[%clk 0:00:05.3]} 54. Rxb8 {[%clk 0:00:03.5]} 54... Rxb8 {[%clk
0:00:06.2]} 55. Rxb8 {[%clk 0:00:03.8]} 55... Kxb8 {[%clk 0:00:06.7]} 56. Qf8+
{[%clk 0:00:04.2]} 56... Kc7 {[%clk 0:00:06.3]} 57. g5 {[%clk 0:00:03.8]} 57...
Nxc4 {[%clk 0:00:04.7]} 58. g6 {[%clk 0:00:03.7]} 58... Be8 {[%clk 0:00:04.9]}
59. g7 {[%clk 0:00:03.4]} 59... Bf7 {[%clk 0:00:04.9]} 60. h6 {[%clk 0:00:03.8]}
60... Ne3+ {[%clk 0:00:04.1]} 61. Kf2 {[%clk 0:00:04.3]} 61... Nxf5 {[%clk
0:00:04]} 62. exf5 {[%clk 0:00:04.6]} 62... Qxf5 {[%clk 0:00:02.6]} 63. g8=Q
{[%clk 0:00:04]} 63... Ne4+ {[%clk 0:00:03.1]} 64. Ke3 {[%clk 0:00:03.6]} 64...
Qf4+ {[%clk 0:00:03.2]} 65. Ke2 {[%clk 0:00:04]} 65... Nc3+ {[%clk 0:00:03.2]}
66. Kf2 {[%clk 0:00:03.4]} 66... Ne4+ {[%clk 0:00:03.3]} 67. Kg2 {[%clk
0:00:03.9]} 67... Qd2+ {[%clk 0:00:03.1]} 68. Kh3 {[%clk 0:00:02.6]} 68... Ng5+
{[%clk 0:00:03]} 69. Qxg5 {[%clk 0:00:01.8]} 69... Qf4 {[%clk 0:00:03.8]} 70.
Qxf4 {[%clk 0:00:01.5]} 70... Be6+ {[%clk 0:00:04.2]} 71. Bg4 {[%clk 0:00:02.4]}
71... Bxg4+ {[%clk 0:00:03.9]} 72. Qxg4 {[%clk 0:00:03.3]} 1-0

[Event "*** SCC Grand Prix: Titled Tuesday Blitz"]
[Site "Chess.com"]
[Date "2020.09.29"]
[Round "4"]
[White "CrazyMartian"]
[Black "shineatchess"]
[Result "1-0"]
[WhiteElo "2325"]
[BlackElo "2202"]
[TimeControl "180+1"]
[EndTime "10:40:45 PDT"]
[Termination "CrazyMartian won by checkmate"]

1. d4 {[%clk 0:02:59.5]} 1... Nf6 {[%clk 0:02:57.6]} 2. Bf4 {[%clk 0:02:53]}
2... d5 {[%clk 0:02:55.6]} 3. e3 {[%clk 0:02:53.1]} 3... c5 {[%clk 0:02:52.1]}
4. c3 {[%clk 0:02:53.4]} 4... Nc6 {[%clk 0:02:47.2]} 5. Nd2 {[%clk 0:02:53.4]}
5... e6 {[%clk 0:02:38.6]} 6. Ngf3 {[%clk 0:02:53.2]} 6... Nh5 {[%clk
0:02:30.2]} 7. Bd3 {[%clk 0:02:27.2]} 7... Nxf4 {[%clk 0:02:28.4]} 8. exf4
{[%clk 0:02:27.4]} 8... Bd6 {[%clk 0:02:25.5]} 9. dxc5 {[%clk 0:02:19.5]} 9...
Bxc5 {[%clk 0:02:19.4]} 10. Nb3 {[%clk 0:02:19]} 10... Bd6 {[%clk 0:02:17.9]}
11. g3 {[%clk 0:02:19]} 11... h6 {[%clk 0:02:10.7]} 12. Nbd4 {[%clk 0:02:17.6]}
12... Bd7 {[%clk 0:02:03.8]} 13. a4 {[%clk 0:02:13.6]} 13... Rc8 {[%clk
0:02:00.1]} 14. Qe2 {[%clk 0:02:01.2]} 14... Qe7 {[%clk 0:01:53.9]} 15. Bb5
{[%clk 0:01:51.3]} 15... O-O {[%clk 0:01:42.5]} 16. O-O {[%clk 0:01:50.7]} 16...
Rfe8 {[%clk 0:01:25.7]} 17. Rfe1 {[%clk 0:01:50.6]} 17... Nxd4 {[%clk
0:01:11.4]} 18. Nxd4 {[%clk 0:01:49.8]} 18... Bxb5 {[%clk 0:01:04.3]} 19. axb5
{[%clk 0:01:45.9]} 19... Bc5 {[%clk 0:01:04.3]} 20. Nf3 {[%clk 0:01:34.7]} 20...
Bb6 {[%clk 0:01:02.1]} 21. Ne5 {[%clk 0:01:30]} 21... Qc5 {[%clk 0:00:50.9]} 22.
Rad1 {[%clk 0:01:17.9]} 22... f6 {[%clk 0:00:33.4]} 23. Nf3 {[%clk 0:01:13.7]}
23... e5 {[%clk 0:00:31.6]} 24. fxe5 {[%clk 0:01:05.3]} 24... fxe5 {[%clk
0:00:31.4]} 25. Rf1 {[%clk 0:00:38.2]} 25... e4 {[%clk 0:00:30.8]} 26. Nd4
{[%clk 0:00:38.1]} 26... Qc4 {[%clk 0:00:29.8]} 27. Qe3 {[%clk 0:00:34.9]} 27...
Bxd4 {[%clk 0:00:28]} 28. Rxd4 {[%clk 0:00:34.5]} 28... Qxb5 {[%clk 0:00:27.7]}
29. Qd2 {[%clk 0:00:32.2]} 29... Rcd8 {[%clk 0:00:26.2]} 30. Rd1 {[%clk
0:00:32.4]} 30... Re5 {[%clk 0:00:23.2]} 31. c4 {[%clk 0:00:30.6]} 31... Qd7
{[%clk 0:00:20.2]} 32. Rxd5 {[%clk 0:00:29.3]} 32... Rxd5 {[%clk 0:00:19.6]} 33.
cxd5 {[%clk 0:00:28.6]} 33... Qd6 {[%clk 0:00:19.4]} 34. Qd4 {[%clk 0:00:28.9]}
34... b6 {[%clk 0:00:18.4]} 35. Qxe4 {[%clk 0:00:28.4]} 35... Kh8 {[%clk
0:00:15.9]} 36. b4 {[%clk 0:00:27]} 36... a5 {[%clk 0:00:14.9]} 37. bxa5 {[%clk
0:00:26.8]} 37... bxa5 {[%clk 0:00:15.1]} 38. Rd4 {[%clk 0:00:23.4]} 38... Qc5
{[%clk 0:00:14.1]} 39. Kg2 {[%clk 0:00:18.9]} 39... Qd6 {[%clk 0:00:13.8]} 40.
h4 {[%clk 0:00:18.4]} 40... a4 {[%clk 0:00:12]} 41. Rxa4 {[%clk 0:00:18.3]}
41... Qxd5 {[%clk 0:00:12.2]} 42. Qxd5 {[%clk 0:00:18.7]} 42... Rxd5 {[%clk
0:00:12.3]} 43. g4 {[%clk 0:00:19.3]} 43... Kh7 {[%clk 0:00:12.3]} 44. Kg3
{[%clk 0:00:19.7]} 44... Rd3+ {[%clk 0:00:11.9]} 45. f3 {[%clk 0:00:19.2]} 45...
Rb3 {[%clk 0:00:11.1]} 46. h5 {[%clk 0:00:19.2]} 46... Rc3 {[%clk 0:00:10.8]}
47. Re4 {[%clk 0:00:19.3]} 47... Rb3 {[%clk 0:00:10.9]} 48. Re5 {[%clk
0:00:19.4]} 48... Rc3 {[%clk 0:00:11]} 49. Rf5 {[%clk 0:00:20]} 49... Rb3 {[%clk
0:00:11]} 50. Kh4 {[%clk 0:00:20.2]} 50... Rb1 {[%clk 0:00:10.5]} 51. Re5 {[%clk
0:00:18.8]} 51... Rf1 {[%clk 0:00:09.9]} 52. Kg3 {[%clk 0:00:18.9]} 52... Rg1+
{[%clk 0:00:09.9]} 53. Kf4 {[%clk 0:00:18.9]} 53... Rf1 {[%clk 0:00:09.8]} 54.
Re3 {[%clk 0:00:18.9]} 54... Rf2 {[%clk 0:00:09.7]} 55. Kf5 {[%clk 0:00:18.6]}
55... Rf1 {[%clk 0:00:09.2]} 56. f4 {[%clk 0:00:18.5]} 56... Ra1 {[%clk
0:00:08.8]} 57. Re5 {[%clk 0:00:18.2]} 57... Rf1 {[%clk 0:00:08.5]} 58. Re4
{[%clk 0:00:16.7]} 58... Rf2 {[%clk 0:00:08.5]} 59. Rd4 {[%clk 0:00:16.8]} 59...
Rf1 {[%clk 0:00:08.7]} 60. Re4 {[%clk 0:00:17.1]} 60... Rf2 {[%clk 0:00:09]} 61.
Ke5 {[%clk 0:00:17.6]} 61... Ra2 {[%clk 0:00:04.7]} 62. Rd4 {[%clk 0:00:17.7]}
62... Re2+ {[%clk 0:00:04.2]} 63. Re4 {[%clk 0:00:16.7]} 63... Ra2 {[%clk
0:00:03.5]} 64. f5 {[%clk 0:00:17]} 64... Ra5+ {[%clk 0:00:03.3]} 65. Kf4 {[%clk
0:00:17.1]} 65... Ra1 {[%clk 0:00:03.3]} 66. f6 {[%clk 0:00:17.3]} 66... Rf1+
{[%clk 0:00:02.2]} 67. Kg3 {[%clk 0:00:17]} 67... Rxf6 {[%clk 0:00:03.1]} 68.
Rf4 {[%clk 0:00:17.4]} 68... Ra6 {[%clk 0:00:03.5]} 69. Rf5 {[%clk 0:00:17.4]}
69... Ra3+ {[%clk 0:00:03.5]} 70. Kh4 {[%clk 0:00:17.8]} 70... Rb3 {[%clk
0:00:04.3]} 71. Re5 {[%clk 0:00:18]} 71... Ra3 {[%clk 0:00:04.8]} 72. Re4 {[%clk
0:00:18.1]} 72... Rb3 {[%clk 0:00:05.2]} 73. g5 {[%clk 0:00:18.4]} 73... Ra3
{[%clk 0:00:05.4]} 74. g6+ {[%clk 0:00:18.5]} 74... Kg8 {[%clk 0:00:04.7]} 75.
Re8# {[%clk 0:00:19]} 1-0